Cogmind - Beta 14 @@@ ROGUE MODE // 2024.10.17 @ 17:46:44 Player: zeyvai Result: Destroyed by D-53 Grenadier with Mini Grenade Launcher Performance ------------- Evolutions (0) 0 Regions Visited (2) 400 Robots Destroyed (8) 40 Value Destroyed (252) 252 Prototype IDs (0) 0 Alien Tech Used (0) 0 Bonus (0) 0 TOTAL SCORE: 692 Bonus ------- None Cogmind --------- Core Integrity 0/250 Matter 298/300 Energy 60/125 System Corruption 0% Temperature Cool (0) Movement Walking (190) Ox1 Location -10/Mines Parts ------- > --- POWER (1) -------- Light Ion Engine > --- PROPULSION (2) --- Aluminum Leg Aluminum Leg > --- UTILITY (2) ------ Large Storage Unit Tractor Beam > --- WEAPON (2) ------- Spread Laser > --- INVENTORY (15) --- Compact Wheel Compact Wheel Small Storage Unit Hardened Light Armor Plating Hacking Suite Spread Laser Spread Laser Light Assault Rifle Datajack Peak State ------------ > --- POWER ------------ Improved Ion Engine > --- PROPULSION ------- Light Treads Light Treads > --- UTILITY ---------- Small Storage Unit Hardened Light Armor Plating > --- WEAPON ----------- EM Pulse Gun Assault Rifle > --- INVENTORY -------- Light Ion Engine Aluminum Leg Aluminum Leg Compact Wheel Compact Wheel Spread Laser Spread Laser Spread Laser [Rating: 10] Favorites ----------- Power Improved Ion Engine Engine Improved Ion Engine Propulsion Light Treads Treads Light Treads Leg Aluminum Leg Utility Large Storage Unit Device Tractor Beam Storage Large Storage Unit Protection Hardened Light Armor Plating Weapon Assault Rifle Energy Gun EM Pulse Gun Ballistic Gun Assault Rifle Build | -11 -10 -10 ------- Run | Yrd Mat Min Slots Evolved . | . . . Power . | . . . Propulsion . | . . . Utility . | . . . Weapon . | . . . Parts Attached 15 | 6 6 3 Power 4 | 1 2 1 Engine 4 | 1 2 1 Core . | . . . Reactor . | . . . Propulsion 4 | 2 . 2 Treads 2 | 2 . . Leg 2 | . . 2 Wheel . | . . . Hover . | . . . Flight . | . . . Utility 4 | 1 3 . Device 1 | . 1 . Storage 2 | 1 1 . Processor . | . . . Hackware . | . . . Protection 1 | . 1 . Artifact . | . . . Weapon 3 | 2 1 . Energy Gun 2 | 1 1 . Energy Cannon . | . . . Ballistic Gun 1 | 1 . . Ballistic Cannon . | . . . Launcher . | . . . Special Weapon . | . . . Impact Weapon . | . . . Slashing Weapon . | . . . Piercing Weapon . | . . . Special Melee Weapon . | . . . Unidentified Prototypes . | . . . Parts Lost 6 | . 2 4 Power 2 | . 1 1 Propulsion 2 | . . 2 Utility . | . . . Weapon 2 | . 1 1 Highest Loss Streak 4 | . 2 4 To Critical Strikes . | . . . Average Slot Usage (%) 94 | . 94 94 Engine 10 | . 9 11 Treads 27 | . 28 25 Device 10 | . 9 14 Storage 14 | . 14 14 Protection 3 | . 4 . Energy Gun 13 | . 13 14 Ballistic Gun 13 | . 14 12 Peak Build Rating 10 | 6 10 9 Average Rating 8 | 4 8 8 On Entrance 5 | . 6 9 Naked Turns . | . . . Heaviest Build 36 | 12 36 29 Greatest Support 40 | 40 40 40 Greatest Overweight (x) 7 | . . 7 Average Overweight (x) . | . . . Largest Inventory Capacity 15 | 8 15 15 Average Capacity 13 | 7 14 15 Most Carried 13 | 7 13 12 Average Carried 10 | 4 11 11 Final Capacity 15 | 8 15 15 Final Carried 12 | 6 12 9 Class Distribution -------------------- 100% | Mutant Dominant Class ---------------- Mutant | -10/Materials Mutant | -10/Mines Resources | -11 -10 -10 ----------- Run | Yrd Mat Min Matter Collected 455 | 278 106 71 Remotely 177 | . 106 71 Salvage Created 337 | 78 187 72 Parts 12 | 1 9 2 Haulers Intercepted . | . . . Recyclers Shooed . | . . . Parts Field Recycled . | . . . Retrieved Matter . | . . . Parts Self-Destructed . | . . . Prevented . | . . . Kills | -11 -10 -10 ------- Run | Yrd Mat Min Combat Hostiles Destroyed 7 | . 4 3 Guns 6 | . 3 3 Classes Destroyed 4 | 1 2 1 Recycler 1 | 1 . . Operator 1 | . 1 . Grunt 6 | . 4 2 Assembled 1 | . . 1 Best Kill Streak 4 | 1 4 2 Combat Bots Only 4 | . 4 2 Max Kills in Single Turn 1 | 1 1 1 Gunslinging . | . . . Exploded . | . . . Melee . | . . . Uniques/NPCs Destroyed . | . . . Combat | -11 -10 -10 -------- Run | Yrd Mat Min Hostile Shots Fired 68 | . 46 22 Missed 22 | . 16 6 Damage Taken 858 | . 367 491 Core 253 | . 45 208 Absorbed by Shields . | . . . Core Remaining (%) 100 | 100 . . Volleys Fired 39 | 6 26 7 Largest 2 | 2 2 2 Hottest 85 | 60 85 85 Shots Fired 77 | 12 51 14 Gun 77 | 12 51 14 Cannon . | . . . Launcher . | . . . Special . | . . . Kinetic 39 | 6 26 7 Thermal 16 | . 9 7 Explosive . | . . . Electromagnetic 22 | 6 16 . Robot Hit Streak 10 | 3 9 10 Robot Miss Streak 6 | 2 6 4 Penetration Max . | . . . Secondary Targets 3 | . 2 1 Max Gunslinging Chain 1 | . 1 1 Shots Hit Robots 58 | 8 37 13 Core Hits 37 | 2 19 16 Critical Kills . | . . . Critical Parts Destroyed 1 | . . 1 Critical Strikes 1 | . . 1 Destroy 1 | . . 1 Melee Attacks . | . . . Impact . | . . . Slashing . | . . . Piercing . | . . . Sneak Attacks . | . . . Combat Hostiles . | . . . Follow-up Attacks . | . . . Damage Inflicted 746 | 117 454 175 Guns 746 | 117 454 175 Cannons . | . . . Explosions . | . . . Melee . | . . . Ramming . | . . . Kinetic 298 | 34 190 74 Thermal 190 | . 89 101 Explosive . | . . . Electromagnetic 258 | 83 175 . Impact . | . . . Slashing . | . . . Piercing . | . . . Highest Corruption . | . . . Average Corruption . | . . . Corruption Purged . | . . . Corruption Blocked . | . . . Overload Shots . | . . . Overflow Damage . | . . . Projectiles . | . . . Explosions . | . . . Melee . | . . . Knockbacks . | . . . Impact . | . . . Kinetic . | . . . Secondary . | . . . Self-Inflicted Damage . | . . . Shots . | . . . Rammed . | . . . Targets Rammed . | . . . Kicked . | . . . Crushed . | . . . Highest Temperature 195 | . 195 144 Average Temperature 83 | . 90 63 Received Heat Transfer 261 | . 204 57 Siege Activations . | . . . Robots Corrupted 1 | . 1 . Combat Hostiles 1 | . 1 . Parts Fried 2 | . 2 . Impact Corruptions . | . . . Robots Melted . | . . . Combat Hostiles . | . . . Parts Melted . | . . . Heat Transferred 245 | . 120 125 Parts Sabotaged . | . . . Parts Stolen . | . . . Parts Stripped . | . . . Power Chain Reactions . | . . . Alert | -11 -10 -10 ------- Run | Yrd Mat Min Peak Influence 155 | 5 155 61 Initial 11 | . 3 11 Average 26 | 1 26 54 Maximum Alert Level . | . . . Low Security (%) 100 | 100 100 100 Level 1 . | . . . Level 2 . | . . . Level 3 . | . . . Level 4 . | . . . Level 5 . | . . . High Security . | . . . Max Security . | . . . Squads Dispatched 3 | . 3 . Investigation . | . . . Extermination . | . . . Reinforcement 3 | . 3 . Assault . | . . . Garrison . | . . . Intercept . | . . . Searches Triggered . | . . . Construction Impeded . | . . . Haulers Reinforced . | . . . Active Scanning Responses . | . . . Cargo Convoy Interrupts . | . . . Stealth | -11 -10 -10 --------- Run | Yrd Mat Min Distress Signals 1 | . 1 . Communications Jammed . | . . . Distress Signals . | . . . Times Spotted 34 | . 12 22 Peak Tracking Total 11 | . 5 11 Tactical Retreats 2 | . 2 . Traps | -11 -10 -10 ------- Run | Yrd Mat Min Traps Triggered . | . . . Indirectly . | . . . Trap Hack Attempts . | . . . Triggered . | . . . Disarmed . | . . . Reprogrammed . | . . . Reused . | . . . Traps Extracted . | . . . Installed . | . . . Triggered . | . . . Machines | -11 -10 -10 ---------- Run | Yrd Mat Min Machines Disabled . | . . . Max in Single Turn . | . . . Machines Repaired . | . . . Machines Dismantled . | . . . Machines Sabotaged . | . . . Overloaded Fab Kills . | . . . Hacking | -11 -10 -10 --------- Run | Yrd Mat Min Machines Accessed 3 | . 3 . Terminals 3 | . 3 . Fabricators . | . . . Repair Stations . | . . . Recycling Units . | . . . Scanalyzers . | . . . Garrison Access . | . . . Total Hacks 5 | . 5 . Successful 2 | . 2 . Failed 3 | . 3 . Catastrophic 1 | . 1 . Database Lockouts . | . . . Manual 5 | . 5 . Terminals 5 | . 5 . Fabricators . | . . . Repair Stations . | . . . Recycling Units . | . . . Scanalyzers . | . . . Garrison Access . | . . . Terminal Hacks . | . . . Fabricator Hacks . | . . . Repair Station Hacks . | . . . Recycling Unit Hacks . | . . . Scanalyzer . | . . . Garrison Access Hacks . | . . . Unauthorized Hacks 2 | . 2 . Terminals 2 | . 2 . Operators 2 | . 2 . Fabricators . | . . . Repair Stations . | . . . Recycling Units . | . . . Scanalyzers . | . . . Garrison Access . | . . . Data Cores Recovered . | . . . Used . | . . . Hacking Detections 3 | . 3 . Full Trace Events 1 | . 1 . Feedback Events . | . . . Feedback Blocked . | . . . Robot Schematics Acquired . | . . . Robots Built . | . . . Authchips . | . . . Time . | . . . Total Robot Build Rating . | . . . Part Schematics Acquired . | . . . Parts Built . | . . . Authchips . | . . . Time . | . . . Total Part Build Rating . | . . . Parts Repaired . | . . . Time . | . . . Parts Recycled . | . . . Recycled Matter . | . . . Retrieved Matter . | . . . Retrieved Components . | . . . Parts Scanalyzed . | . . . Part Schematics Acquired . | . . . Parts Damaged . | . . . Bothacking | -11 -10 -10 ------------ Run | Yrd Mat Min Used RIF Installer . | . . . Robots Hacked . | . . . Non-combat . | . . . Combat . | . . . Robot Hacks Applied . | . . . Relay Couplers Released . | . . . Fabnet Peak Effective % . | . . . Robots Rewired . | . . . Allies Hacked . | . . . Hacks Repelled . | . . . Allies | -11 -10 -10 -------- Run | Yrd Mat Min Total Allies . | . . . Largest Group . | . . . Highest-Rated Group . | . . . Highest-Rated Ally . | . . . Total Orders . | . . . Ally Attacks . | . . . Total Damage . | . . . Kills . | . . . Allies Corrupted . | . . . Allies Melted . | . . . Intel | -11 -10 -10 ------- Run | Yrd Mat Min Robot Analysis Total . | . . . Derelict Logs Recovered . | . . . Drone Launches . | . . . Drone Recoveries . | . . . Exploration | -11 -10 -10 ------------- Run | Yrd Mat Min Turns Passed 831 | 129 590 112 Spaces Moved 422 | 63 307 52 Core 8 | 7 . 1 Treads 414 | 56 307 51 Legs . | . . . Wheels . | . . . Hover . | . . . Flight . | . . . Fastest Speed 50 | 50 160 160 Average Speed 158 | 147 160 164 Slowest Speed 400 | 160 160 400 Overloaded Moves . | . . . Propulsion Burnouts . | . . . Robots Hopped . | . . . Cave-ins Triggered . | . . . Exploration Rate (%) 20 | 4 43 15 Regions Visited 2 Branch Regions 1 Pre-discovered Areas . | . . . Known Exits Taken . | . . . Unknown Exits Taken 2 | 1 1 . Scrap Searched . | . . . Spaces Dug . | . . . Terrain Destroyed . | . . . Melee . | . . . Projectile . | . . . AOE . | . . . Terrain Rammed . | . . . Walls Destroyed . | . . . Machines Disabled . | . . . Actions | -11 -10 -10 --------- Run | Yrd Mat Min Total 508 | 88 356 64 Wait 8 | . 6 2 Move 420 | 62 306 52 Hop . | . . . Pick Up 22 | 13 9 . Fast Attach 1 | . 1 . Attach 11 | 6 2 3 Detach . | . . . Swap 3 | . 3 . Drop 4 | 1 3 . Fire 39 | 6 26 7 Melee . | . . . Ram . | . . . Kick . | . . . Crush . | . . . Escape Stasis . | . . . Rewire . | . . . Trap . | . . . Miscellaneous . | . . . Route ------- -11/Scrapyard -10/Materials -10/Mines History --------- Turn | Location | Event 20 | -11/Scrapyard | Discovered new exit (range 15) 130 | -11/Scrapyard | Entered Materials 316 | -10/Materials | Build established: Mutant 662 | -10/Materials | Discovered new exit (range 13) 720 | -10/Materials | Entered Mines 794 | -10/Mines | Assembled infested the area 799 | -10/Mines | Assisted by a Guerilla fighting off Assembled 827 | -10/Mines | Core integrity fell below 50% 829 | -10/Mines | Core integrity fell below 20% 832 | -10/Mines | Destroyed by D-53 Grenadier with Mini Grenade Launcher Last Messages --------------- Acquired 3 matter. U-05 Engineer lays Concrete. Assault Rifle destroyed. U-05 Engineer builds a Wall. Y8-CX0(h): "I'll hold them off! Go on ahead or try to find another way!" Lgt. Treads destroyed. Y8-CX0(h) destroyed. Lgt. Treads destroyed. The unstable cave ceiling collapses. U-05 Engineer lays Concrete. as-43821 destroyed. as-63353 destroyed. U-05 Engineer lays Concrete. Acquired 10 matter. U-05 Engineer lays Concrete. Acquired 10 matter. The unstable cave ceiling collapses. U-05 Engineer lays Concrete. Acquired 8 matter. Map ----- +----------------------------------------------------+ | ?????????????????????????????????????????????????? | | ?????????????????????????????????????????????????? | | ?????????????????????????????????????????????????? | | ??????##############?????????????????????????????? | | ??????# #?????????????????????????????? | | ??????# """ """ #?????????????????????????????? | | ??????# """ """ #?????????????????????????????? | | ??????# """ """ #?????????????????????????????? | | ??????# #?????????????????????????????? | | ??????# #?????????????????????????????? | | ??????# #?????????????????????????????? | | ??????# #?????????????????????????????? | | ??????######### ###????###??????????????????????? | | ??????????????# #??????# $??????????????????????? | | ??????????##### #??????#$#??????????????????????? | | ?????????## ###????# #??????????????????????? | | ?????????# ! ##???# #??????????????????????? | | ?????????# *%% ##### #??????????????????????? | | ?????????## ####???????????????????? | | ??????????### ### ##??????????????????? | | ????????????## ## #??????????????????? | | ?????????????# ## * #??????????????????? | | ?????????????## #### #??????????????????? | | ??????????????####??# #??????????????????? | | ????????????????????# ##?????????????????? | | ????????????????????# @ #?????????????????? | | ????????????????????# #???????????????? | | ????????????????????# a a a ??????????? | | ????????????????????## a ##?????????? | | ????????????????????# ##??????????? | | ????????????????????## dd ## ###???????????? | | ?????????????????????# # ##???##?????????????? | | ????????????????????? ##???????????????????? | | ???????????????????? #????????????????????? | | ???????????????????? #????????????????????? | | ???????????????????# t % ????????????????????? | | ??????????????????? #????????????????????? | | ??????????????????? u ????????????????????? | | ??????????????????# ????????????????????? | | ????????????????????? ????????????????????? | | ??????????????????????? ?????????????????????? | | ?????????????????????????????????????????????????? | | ?????????????????????????????????????????????????? | | ?????????????????????????????????????????????????? | | ?????????????????????????????????????????????????? | | ?????????????????????????????????????????????????? | | ?????????????????????????????????????????????????? | | ?????????????????????????????????????????????????? | | ?????????????????????????????????????????????????? | | ?????????????????????????????????????????????????? | +----------------------------------------------------+ Best States ------------- Heat Dissipation 25 Energy Generation 12 Energy Capacity 265 Matter Stores 300 Matter Capacity 300 Sight Range 16 Terrain Scan Density 10 Armor Coverage 150 Evasion (%) 40 Recoil Reduction 2 Item Schematics ----------------- None Robot Schematics ------------------ None Fabricated ------------ Nothing Alien Tech Used ----------------- None Achievements -------------- None Challenges ------------ None Game ------ Seed NeutrinoColdMatter Manual? 0 Play Time 00:07:34 Cumulative 35.2 hours Start 2024.10.17 @ 17:39:33 End 2024.10.17 @ 17:46:44 Sessions 1 Manual Loads 0 Difficulty Rogue Special Mode None Game No. 40 Rogue 38 Adventurer 2 Explorer 0 Win Type - Total 0 Types 0/0/0/0/0/0/0/0/0 Lore% 16 Gallery% 30 Achievement% 23 Wizard Run 0 Options --------- Layout 1 ASCII 0 Keyboard 0 Movement Mouse Keybinds 0 Fullscreen 0 Font 28/X11 Map View 50x35 Zoom Use 0% Tactical HUD 0 Map Filters NONE Filters NONE Steam 1 RUN: d2aac455-ac0e-414d-9c5d-a76638047389